[Event "DVM U10 2024"]
[Site "Duesseldorf"]
[Date "2024.12.29"]
[Round "7"]
[White "El-Issa, Erik"]
[Black "Breaz, Albert"]
[Result "0-1"]
[ECO "C48"]
[WhiteElo "1530"]
[BlackElo "1494"]
[Annotator "NA"]
[PlyCount "96"]
[EventDate "2024.12.23"]
[EventType "team-tourn"]
[EventRounds "7"]
[EventCountry "GER"]
[SourceTitle "playchess.com"]
[Source "ChessBase"]
[SourceQuality "1"]
[TimeControl "3300+5"]

1. e4 {[%emt 0:00:02]} e5 {[%emt 0:00:08]} 2. Nf3 {[%emt 0:00:05]} Nc6 {[%emt 0:00:09]} 3. Nc3 {[%emt 0:00:04]} Nf6 {[%emt 0:00:10]} 4. Bb5 {[%emt 0:00:06]} a6 {[%emt 0:00:12]} 5. Bxc6 {[%emt 0:00:21]} dxc6 {[%emt 0:00:09]} 6. d3 {[%emt 0:00:11]} Bg4 {[%emt 0:00:32]} 7. h3 {[%emt 0:00:14]} Bh5 {[%emt 0:00:20]} 8. Bg5 {[%emt 0:00:17]} h6 {[%emt 0:00:17]} 9. Be3 {[%emt 0:00:21]} Bb4 {[%emt 0:00:07]} 10. O-O {[%emt 0:00:26]} O-O {[%emt 0:00:31]} 11. Bd2 {[%emt 0:00:58]} Nd7 {[%emt 0:00:53]} 12. g4 {[%emt 0:00:47]} Bg6 {[%emt 0:00:26]} 13. Ne2 {[%emt 0:00:19]} Bc5 {[%emt 0:00:50]} 14. Ng3 {[%emt 0:00:33]} Qf6 {[%emt 0:07:40]} 15. Qe2 {[%emt 0:02:30]} h5 {[%emt 0:03:16]} 16. gxh5 {[%emt 0:03:17]} Bxh5 {[%emt 0:00:14]} 17. Nxh5 {[%emt 0:00:19]} Qg6+ {[%emt 0:00:15]} 18. Ng3 {[%emt 0:00:34]} Qxg3+ {[%emt 0:00:07]} 19. Kh1 {[%emt 0:00:26]} Qxh3+ {[%emt 0:00:08]} 20. Nh2 {[%emt 0:00:37]} f5 {[%emt 0:00:21]} 21. f3 {[%emt 0:02:00]} f4 {[%emt 0:01:05]} 22. c3 {[%emt 0:02:36]} Nf6 {[%emt 0:00:31]} 23. d4 {[%emt 0:01:01]} Nh5 {[%emt 0:00:20]} 24. Be1 {[%emt 0:01:46]} exd4 {[%emt 0:01:14]} 25. cxd4 {[%emt 0:02:15]} Be7 {[%emt 0:01:09]} 26. Qg2 {[%emt 0:02:00]} Qxg2+ {[%emt 0:00:36]} 27. Kxg2 {[%emt 0:00:09]} Rad8 {[%emt 0:00:20]} 28. Rd1 {[%emt 0:01:54]} Rf6 {[%emt 0:01:43]} 29. Bh4 {[%emt 0:02:52]} Rg6+ {[%emt 0:00:08]} 30. Kh1 {[%emt 0:00:32]} Bxh4 {[%emt 0:00:08]} 31. Rg1 {[%emt 0:00:43]} Ng3+ {[%emt 0:00:14]} 32. Kg2 {[%emt 0:00:07]} Ne2+ {[%emt 0:00:17]} 33. Kh1 {[%emt 0:01:06]} Nxg1 {[%emt 0:00:23]} 34. Rxg1 {[%emt 0:00:08]} Rxg1+ {[%emt 0:00:04]} 35. Kxg1 {[%emt 0:00:07]} Rxd4 {[%emt 0:00:06]} 36. Ng4 {[%emt 0:00:22]} Rd2 {[%emt 0:00:12]} 37. e5 {[%emt 0:00:12]} Rxb2 {[%emt 0:00:22]} 38. a4 {[%emt 0:00:15]} Ra2 {[%emt 0:00:06]} 39. e6 {[%emt 0:00:05]} Rxa4 {[%emt 0:00:06]} 40. Ne5 {[%emt 0:00:13]} b5 {[%emt 0:00:41]} 41. Ng6 {[%emt 0:00:50]} b4 {[%emt 0:00:23]} 42. e7 {[%emt 0:00:30]} Bxe7 {[%emt 0:00:16]} 43. Nxe7+ {[%emt 0:00:09]} Kf8 {[%emt 0:00:09]} 44. Nxc6 {[%emt 0:00:07]} b3 {[%emt 0:00:03]} 45. Kh2 {[%emt 0:00:36]} b2 {[%emt 0:00:06]} 46. Kh3 {[%emt 0:00:13]} b1=Q {[%emt 0:00:09]} 47. Kg4 {[%emt 0:00:18]} Qg6+ {[%emt 0:00:16]} 48. Kh3 {[%emt 0:00:15]} Qg3# {[%emt 0:00:05]} 0-1

[Event "DVM U10 2024"]
[Site "Duesseldorf"]
[Date "2024.12.29"]
[Round "7"]
[White "Ragavendra Prasanna, Shyam Sundar"]
[Black "Goyush, Shams"]
[Result "1-0"]
[ECO "D02"]
[WhiteElo "1524"]
[BlackElo "1122"]
[Annotator "NA"]
[PlyCount "65"]
[EventDate "2024.12.23"]
[EventType "team-tourn"]
[EventRounds "7"]
[EventCountry "GER"]
[SourceTitle "playchess.com"]
[Source "ChessBase"]
[SourceQuality "1"]
[TimeControl "3300+5"]

1. d4 {[%emt 0:00:03]} d5 {[%emt 0:00:07]} 2. Bf4 {[%emt 0:00:09]} Nf6 {[%emt 0:00:32]} 3. Nf3 {[%emt 0:00:07]} g6 {[%emt 0:07:00]} 4. e3 {[%emt 0:00:15]} a6 {[%emt 0:02:29]} 5. Nc3 {[%emt 0:00:17]} Nc6 {[%emt 0:00:38]} 6. Be2 {[%emt 0:00:11]} Bg7 {[%emt 0:00:10]} 7. a3 {[%emt 0:01:06]} O-O {[%emt 0:00:18]} 8. Ne5 {[%emt 0:00:39]} Bd7 {[%emt 0:09:31]} 9. g4 {[%emt 0:02:46]} Qc8 {[%emt 0:09:18]} 10. g5 {[%emt 0:00:00]} Nxe5 {[%emt 0:05:17]} 11. gxf6 {[%emt 0:00:56]} exf6 {[%emt 0:00:53]} 12. dxe5 {[%emt 0:00:39]} fxe5 {[%emt 0:00:12]} 13. Nxd5 {[%emt 0:00:35]} Re8 {[%emt 0:01:05]} 14. Bg5 {[%emt 0:00:21]} Kf8 {[%emt 0:02:04]} 15. h4 {[%emt 0:02:11]} h5 {[%emt 0:01:01]} 16. Bxh5 {[%emt 0:00:46]} Bc6 {[%emt 0:01:10]} 17. Bf3 {[%emt 0:02:41]} e4 {[%emt 0:00:35]} 18. Be2 {[%emt 0:01:54]} Qd7 {[%emt 0:01:34]} 19. c4 {[%emt 0:00:35]} b5 {[%emt 0:00:42]} 20. Nf6 {[%emt 0:02:56]} Qxd1+ {[%emt 0:00:22]} 21. Rxd1 {[%emt 0:00:30]} Bxf6 {[%emt 0:01:31]} 22. Bxf6 {[%emt 0:00:00]} Re6 {[%emt 0:00:31]} 23. Bg5 {[%emt 0:01:01]} Rd6 {[%emt 0:02:11]} 24. Rxd6 {[%emt 0:00:17]} cxd6 {[%emt 0:00:10]} 25. h5 {[%emt 0:00:38]} gxh5 {[%emt 0:00:43]} 26. Rxh5 {[%emt 0:00:23]} Kg7 {[%emt 0:00:24]} 27. Rh6 {[%emt 0:00:17]} Rh8 {[%emt 0:00:41]} 28. Rxd6 {[%emt 0:00:12]} Rc8 {[%emt 0:00:52]} 29. Bg4 {[%emt 0:00:14]} Rc7 {[%emt 0:00:18]} 30. Bf6+ {[%emt 0:00:40]} Kg8 {[%emt 0:00:22]} 31. Rd8+ {[%emt 0:00:52]} Kh7 {[%emt 0:00:08]} 32. Bf5+ {[%emt 0:00:25]} Kh6 {[%emt 0:00:08]} 33. Rh8# {[%emt 0:00:19]} 1-0

[Event "DVM U10 2024"]
[Site "Duesseldorf"]
[Date "2024.12.29"]
[Round "7"]
[White "Pawlus, Daniel"]
[Black "Trunz, Daniel"]
[Result "0-1"]
[ECO "E20"]
[WhiteElo "1521"]
[BlackElo "1440"]
[Annotator "NA"]
[PlyCount "46"]
[EventDate "2024.12.23"]
[EventType "team-tourn"]
[EventRounds "7"]
[EventCountry "GER"]
[SourceTitle "playchess.com"]
[Source "ChessBase"]
[SourceQuality "1"]
[TimeControl "3300+5"]

1. d4 {[%emt 0:00:02]} d5 {[%emt 0:00:03]} 2. c4 {[%emt 0:00:07]} e6 {[%emt 0:01:17]} 3. Nc3 {[%emt 0:00:06]} Bb4 {[%emt 0:01:48]} 4. Bd2 {[%emt 0:01:50]} Nf6 {[%emt 0:00:49]} 5. e3 {[%emt 0:00:28]} Nc6 {[%emt 0:01:14]} 6. Be2 {[%emt 0:01:41]} O-O {[%emt 0:02:01]} 7. Nf3 {[%emt 0:00:20]} Re8 {[%emt 0:02:24]} 8. a3 {[%emt 0:02:37]} Bxc3 {[%emt 0:01:35]} 9. Bxc3 {[%emt 0:00:39]} b6 {[%emt 0:08:25]} 10. O-O {[%emt 0:01:39]} Bb7 {[%emt 0:00:37]} 11. c5 {[%emt 0:05:03]} Nd7 {[%emt 0:01:53]} 12. cxb6 {[%emt 0:01:19]} axb6 {[%emt 0:00:41]} 13. Bd3 {[%emt 0:00:42]} e5 {[%emt 0:01:03]} 14. e4 {[%emt 0:02:40]} exd4 {[%emt 0:01:37]} 15. Nxd4 {[%emt 0:00:36]} dxe4 {[%emt 0:02:07]} 16. Nxc6 {[%emt 0:01:09]} Bxc6 {[%emt 0:00:11]} 17. Bc4 {[%emt 0:00:03]} Qg5 {[%emt 0:01:51]} 18. h3 {[%emt 0:05:59]} h5 {[%emt 0:01:29]} 19. g4 {[%emt 0:07:37]} e3 {[%emt 0:02:00]} 20. Qe2 {[%emt 0:00:51]} Qf4 {[%emt 0:05:23]} 21. Ba2 {[%emt 0:00:57]} Bf3 {[%emt 0:02:57]} 22. Qc2 {[%emt 0:00:45]} hxg4 {[%emt 0:00:54]} 23. fxe3 {[%emt 0:00:35]} Qg3+ {[%emt 0:00:43]} 0-1

[Event "DVM U10 2024"]
[Site "Duesseldorf"]
[Date "2024.12.29"]
[Round "7"]
[White "Stopp, Bruno"]
[Black "Ni, Wilhelm Zeyin"]
[Result "0-1"]
[ECO "B50"]
[WhiteElo "1519"]
[BlackElo "1611"]
[Annotator "NA"]
[PlyCount "75"]
[EventDate "2024.12.23"]
[EventType "team-tourn"]
[EventRounds "7"]
[EventCountry "GER"]
[SourceTitle "playchess.com"]
[Source "ChessBase"]
[SourceQuality "1"]
[TimeControl "3300+5"]

1. e4 {[%emt 0:00:02]} c5 {[%emt 0:00:06]} 2. Nf3 {[%emt 0:00:05]} d6 {[%emt 0:00:06]} 3. c3 {[%emt 0:00:04]} Nf6 {[%emt 0:00:06]} 4. Be2 {[%emt 0:00:05]} Bd7 {[%emt 0:00:07]} 5. Qc2 {[%emt 0:00:24]} g6 {[%emt 0:02:42]} 6. O-O {[%emt 0:00:12]} Bg7 {[%emt 0:02:58]} 7. d4 {[%emt 0:02:45]} O-O {[%emt 0:01:58]} 8. Bg5 {[%emt 0:03:01]} Nc6 {[%emt 0:02:28]} 9. Rd1 {[%emt 0:04:33]} cxd4 {[%emt 0:03:13]} 10. cxd4 {[%emt 0:00:51]} Rc8 {[%emt 0:00:23]} 11. Nc3 {[%emt 0:02:17]} h6 {[%emt 0:02:29]} 12. Bh4 {[%emt 0:01:13]} a6 {[%emt 0:08:24]} 13. e5 {[%emt 0:02:35]} dxe5 {[%emt 0:02:31]} 14. dxe5 {[%emt 0:00:11]} Ng4 {[%emt 0:00:14]} 15. e6 {[%emt 0:00:23]} fxe6 {[%emt 0:00:13]} 16. Qxg6 {[%emt 0:00:12]} Nge5 {[%emt 0:02:22]} 17. Qg3 {[%emt 0:01:51]} Nxf3+ {[%emt 0:02:16]} 18. Bxf3 {[%emt 0:01:24]} Ne5 {[%emt 0:01:12]} 19. Bh5 {[%emt 0:08:37]} Kh8 {[%emt 0:07:06]} 20. Re1 {[%emt 0:16:27]} Nc4 {[%emt 0:05:40]} 21. b3 {[%emt 0:03:02]} Nd6 {[%emt 0:02:40]} 22. Rac1 {[%emt 0:01:01]} Nf5 {[%emt 0:01:34]} 23. Qd3 {[%emt 0:02:16]} Nxh4 {[%emt 0:00:47]} 24. Red1 {[%emt 0:01:27]} Bc6 {[%emt 0:01:29]} 25. Qg3 {[%emt 0:00:35]} Nf5 {[%emt 0:00:18]} 26. Rxd8 {[%emt 0:00:12]} Nxg3 {[%emt 0:00:06]} 27. Rxf8+ {[%emt 0:00:03]} Rxf8 {[%emt 0:00:11]} 28. hxg3 {[%emt 0:00:03]} Bd4 {[%emt 0:00:23]} 29. Nd1 {[%emt 0:00:30]} Rf5 {[%emt 0:00:36]} 30. Bg4 {[%emt 0:00:02]} Re5 {[%emt 0:00:01]} 31. Ne3 {[%emt 0:00:44]} Bxe3 {[%emt 0:00:17]} 32. fxe3 {[%emt 0:00:01]} Rxe3 {[%emt 0:00:01]} 33. Rf1 {[%emt 0:00:15]} Kg7 {[%emt 0:00:11]} 34. Bh5 {[%emt 0:00:03]} Rxg3 {[%emt 0:00:22]} 35. Rf7+ {[%emt 0:00:17]} Kh8 {[%emt 0:00:06]} 36. Rf8+ {[%emt 0:00:05]} Kh7 {[%emt 0:00:13]} 37. Rf7+ {[%emt 0:00:08]} Rg7 {[%emt 0:00:02]} 38. Rxg7+ {[%emt 0:00:08]} 0-1

[Event "DVM U10 2024"]
[Site "Duesseldorf"]
[Date "2024.12.29"]
[Round "7"]
[White "Dintinger, Ata Lucien"]
[Black "Bentele, Otto"]
[Result "1-0"]
[ECO "C25"]
[WhiteElo "1511"]
[BlackElo "1522"]
[Annotator "NA"]
[PlyCount "149"]
[EventDate "2024.12.23"]
[EventType "team-tourn"]
[EventRounds "7"]
[EventCountry "GER"]
[SourceTitle "playchess.com"]
[Source "ChessBase"]
[SourceQuality "1"]
[TimeControl "3300+5"]

1. e4 {[%emt 0:00:03]} e5 {[%emt 0:00:17]} 2. Nc3 {[%emt 0:00:14]} Nc6 {[%emt 0:00:17]} 3. f4 {[%emt 0:00:51]} d6 {[%emt 0:02:29]} 4. Nf3 {[%emt 0:00:28]} Bg4 {[%emt 0:01:21]} 5. Bc4 {[%emt 0:00:39]} Nd4 {[%emt 0:03:50]} 6. Be2 {[%emt 0:06:59]} Bxf3 {[%emt 0:04:23]} 7. Bxf3 {[%emt 0:01:19]} Nxf3+ {[%emt 0:04:03]} 8. Qxf3 {[%emt 0:00:24]} Nf6 {[%emt 0:01:40]} 9. d3 {[%emt 0:00:21]} Qd7 {[%emt 0:03:55]} 10. Be3 {[%emt 0:02:00]} a6 {[%emt 0:02:24]} 11. O-O-O {[%emt 0:03:22]} Qg4 {[%emt 0:03:53]} 12. Qxg4 {[%emt 0:01:16]} Nxg4 {[%emt 0:00:29]} 13. Nd5 {[%emt 0:00:27]} O-O-O {[%emt 0:00:54]} 14. Rdf1 {[%emt 0:02:58]} f6 {[%emt 0:01:45]} 15. h3 {[%emt 0:00:20]} Nxe3 {[%emt 0:01:03]} 16. Nxe3 {[%emt 0:00:13]} c6 {[%emt 0:00:44]} 17. c4 {[%emt 0:00:50]} Kc7 {[%emt 0:00:49]} 18. Kc2 {[%emt 0:00:24]} Be7 {[%emt 0:02:20]} 19. b3 {[%emt 0:00:26]} g6 {[%emt 0:00:13]} 20. f5 {[%emt 0:00:26]} g5 {[%emt 0:00:37]} 21. g4 {[%emt 0:01:53]} h6 {[%emt 0:00:36]} 22. h4 {[%emt 0:00:12]} Kd7 {[%emt 0:00:34]} 23. hxg5 {[%emt 0:00:37]} hxg5 {[%emt 0:00:24]} 24. Rh5 {[%emt 0:00:14]} Rxh5 {[%emt 0:00:52]} 25. gxh5 {[%emt 0:00:09]} Rh8 {[%emt 0:00:15]} 26. Rh1 {[%emt 0:00:20]} Bf8 {[%emt 0:00:25]} 27. Ng4 {[%emt 0:00:12]} Bh6 {[%emt 0:00:48]} 28. Nxf6+ {[%emt 0:00:28]} Ke7 {[%emt 0:00:57]} 29. Ng4 {[%emt 0:00:10]} Kf7 {[%emt 0:01:41]} 30. Kc3 {[%emt 0:00:59]} Ke7 {[%emt 0:01:51]} 31. d4 {[%emt 0:00:27]} exd4+ {[%emt 0:00:24]} 32. Kxd4 {[%emt 0:00:11]} Bg7+ {[%emt 0:00:30]} 33. Ke3 {[%emt 0:00:44]} Bh6 {[%emt 0:01:13]} 34. b4 {[%emt 0:01:22]} b5 {[%emt 0:00:16]} 35. c5 {[%emt 0:01:13]} dxc5 {[%emt 0:01:04]} 36. bxc5 {[%emt 0:00:51]} a5 {[%emt 0:00:25]} 37. Kd4 {[%emt 0:00:19]} Bg7+ {[%emt 0:00:25]} 38. e5 {[%emt 0:00:17]} Rd8+ {[%emt 0:00:14]} 39. Ke4 {[%emt 0:00:10]} Bh8 {[%emt 0:00:20]} 40. h6 {[%emt 0:00:54]} Rd2 {[%emt 0:00:34]} 41. Rh5 {[%emt 0:00:54]} Rxa2 {[%emt 0:00:17]} 42. Rxg5 {[%emt 0:00:12]} Ra4+ {[%emt 0:00:36]} 43. Kf3 {[%emt 0:00:26]} b4 {[%emt 0:00:15]} 44. Rg8 {[%emt 0:00:13]} Ra3+ {[%emt 0:00:14]} 45. Kf4 {[%emt 0:00:12]} b3 {[%emt 0:00:28]} 46. Rxh8 {[%emt 0:00:17]} Ra4+ {[%emt 0:00:17]} 47. Kg5 {[%emt 0:00:07]} b2 {[%emt 0:00:13]} 48. f6+ {[%emt 0:00:33]} Kf7 {[%emt 0:00:19]} 49. Rb8 {[%emt 0:00:17]} Rb4 {[%emt 0:00:09]} 50. Rxb4 {[%emt 0:00:33]} axb4 {[%emt 0:00:14]} 51. h7 {[%emt 0:00:08]} b1=Q {[%emt 0:00:14]} 52. h8=Q {[%emt 0:00:15]} Qc1+ {[%emt 0:00:22]} 53. Kf5 {[%emt 0:00:33]} Qf1+ {[%emt 0:00:25]} 54. Ke4 {[%emt 0:00:24]} Qe1+ {[%emt 0:00:09]} 55. Ne3 {[%emt 0:00:29]} Qb1+ {[%emt 0:00:15]} 56. Kf3 {[%emt 0:00:17]} Qg6 {[%emt 0:00:39]} 57. Qg7+ {[%emt 0:00:29]} Qxg7 {[%emt 0:00:08]} 58. fxg7 {[%emt 0:00:06]} Kxg7 {[%emt 0:00:01]} 59. Ke4 {[%emt 0:00:15]} b3 {[%emt 0:00:11]} 60. Nc4 {[%emt 0:00:09]} Kf7 {[%emt 0:00:03]} 61. Kf5 {[%emt 0:00:48]} Ke7 {[%emt 0:00:08]} 62. e6 {[%emt 0:00:14]} Ke8 {[%emt 0:00:33]} 63. Ke4 {[%emt 0:00:36]} Ke7 {[%emt 0:00:11]} 64. Ke5 {[%emt 0:00:06]} Ke8 {[%emt 0:00:04]} 65. Kd6 {[%emt 0:00:06]} Kd8 {[%emt 0:00:19]} 66. Kxc6 {[%emt 0:00:12]} Ke7 {[%emt 0:00:04]} 67. Kd5 {[%emt 0:00:09]} Kd8 {[%emt 0:00:07]} 68. Kd6 {[%emt 0:00:08]} Ke8 {[%emt 0:00:36]} 69. c6 {[%emt 0:00:09]} Kd8 {[%emt 0:00:29]} 70. e7+ {[%emt 0:00:11]} Ke8 {[%emt 0:00:35]} 71. c7 {[%emt 0:00:06]} Kf7 {[%emt 0:00:16]} 72. c8=Q {[%emt 0:00:11]} b2 {[%emt 0:00:45]} 73. Qf5+ {[%emt 0:00:07]} Kg7 {[%emt 0:00:08]} 74. Qg5+ {[%emt 0:00:46]} Kh7 {[%emt 0:00:06]} 75. e8=Q {[%emt 0:00:25]} 1-0

[Event "DVM U10 2024"]
[Site "Duesseldorf"]
[Date "2024.12.29"]
[Round "7"]
[White "Liu, Yichen"]
[Black "Thirumal, Shravan"]
[Result "0-1"]
[ECO "C45"]
[WhiteElo "1500"]
[BlackElo "1614"]
[Annotator "NA"]
[PlyCount "102"]
[EventDate "2024.12.23"]
[EventType "team-tourn"]
[EventRounds "7"]
[EventCountry "GER"]
[SourceTitle "playchess.com"]
[Source "ChessBase"]
[SourceQuality "1"]
[TimeControl "3300+5"]

1. e4 {[%emt 0:00:03]} e5 {[%emt 0:01:07]} 2. Nf3 {[%emt 0:00:09]} Nc6 {[%emt 0:00:06]} 3. d4 {[%emt 0:00:38]} exd4 {[%emt 0:00:16]} 4. Nxd4 {[%emt 0:00:11]} Bc5 {[%emt 0:00:09]} 5. Be3 {[%emt 0:00:16]} Qf6 {[%emt 0:00:02]} 6. c3 {[%emt 0:00:16]} Nge7 {[%emt 0:01:16]} 7. Bb5 {[%emt 0:00:20]} a6 {[%emt 0:02:10]} 8. Ba4 {[%emt 0:00:31]} b5 {[%emt 0:00:23]} 9. Bb3 {[%emt 0:00:31]} O-O {[%emt 0:00:24]} 10. O-O {[%emt 0:00:26]} d6 {[%emt 0:04:48]} 11. Nxc6 {[%emt 0:07:34]} Nxc6 {[%emt 0:00:24]} 12. Bxc5 {[%emt 0:00:21]} dxc5 {[%emt 0:00:51]} 13. Qe2 {[%emt 0:02:08]} c4 {[%emt 0:00:43]} 14. Bc2 {[%emt 0:00:09]} Bb7 {[%emt 0:14:27]} 15. Nd2 {[%emt 0:00:22]} Rad8 {[%emt 0:00:23]} 16. Nf3 {[%emt 0:00:15]} Rfe8 {[%emt 0:00:11]} 17. Rad1 {[%emt 0:00:14]} h6 {[%emt 0:03:29]} 18. Rfe1 {[%emt 0:00:19]} Ne5 {[%emt 0:10:39]} 19. Rxd8 {[%emt 0:01:21]} Rxd8 {[%emt 0:00:21]} 20. Nxe5 {[%emt 0:00:30]} Qxe5 {[%emt 0:00:13]} 21. f3 {[%emt 0:02:49]} Qf4 {[%emt 0:04:11]} 22. Qe3 {[%emt 0:00:42]} Qxe3+ {[%emt 0:00:07]} 23. Rxe3 {[%emt 0:00:09]} Rd2 {[%emt 0:00:05]} 24. Kf1 {[%emt 0:02:58]} Rxc2 {[%emt 0:00:14]} 25. Re2 {[%emt 0:00:05]} Rxe2 {[%emt 0:01:28]} 26. Kxe2 {[%emt 0:00:06]} c5 {[%emt 0:01:13]} 27. Ke3 {[%emt 0:01:29]} f6 {[%emt 0:00:00]} 28. Kf4 {[%emt 0:00:05]} Kf7 {[%emt 0:00:00]} 29. Kf5 {[%emt 0:00:16]} Bc8+ {[%emt 0:00:00]} 30. Kf4 {[%emt 0:00:09]} g5+ {[%emt 0:00:14]} 31. Ke3 {[%emt 0:02:04]} a5 {[%emt 0:00:24]} 32. Kd2 {[%emt 0:00:16]} Ke6 {[%emt 0:00:11]} 33. g3 {[%emt 0:00:39]} Ke5 {[%emt 0:00:22]} 34. Ke3 {[%emt 0:00:28]} Bh3 {[%emt 0:01:01]} 35. Kf2 {[%emt 0:00:26]} b4 {[%emt 0:00:07]} 36. Ke2 {[%emt 0:02:13]} Bg2 {[%emt 0:00:21]} 37. Kf2 {[%emt 0:00:07]} Bh1 {[%emt 0:00:09]} 38. Ke2 {[%emt 0:00:30]} a4 {[%emt 0:00:06]} 39. a3 {[%emt 0:00:34]} h5 {[%emt 0:01:04]} 40. Kf2 {[%emt 0:00:24]} g4 {[%emt 0:00:23]} 41. fxg4 {[%emt 0:00:27]} hxg4 {[%emt 0:00:07]} 42. Ke3 {[%emt 0:00:58]} Bxe4 {[%emt 0:00:18]} 43. Kd2 {[%emt 0:00:33]} Bd3 {[%emt 0:00:06]} 44. Ke3 {[%emt 0:00:16]} f5 {[%emt 0:00:04]} 45. Kf2 {[%emt 0:00:15]} Ke4 {[%emt 0:00:01]} 46. Ke1 {[%emt 0:01:07]} Ke3 {[%emt 0:00:06]} 47. Kd1 {[%emt 0:01:48]} b3 {[%emt 0:00:17]} 48. Kc1 {[%emt 0:00:20]} Ke2 {[%emt 0:00:13]} 49. h4 {[%emt 0:00:33]} gxh3 {[%emt 0:00:49]} 50. g4 {[%emt 0:00:35]} h2 {[%emt 0:00:00]} 51. gxf5 {[%emt 0:00:17]} h1=R# {[%emt 0:00:00]} 0-1

[Event "DVM U10 2024"]
[Site "Duesseldorf"]
[Date "2024.12.29"]
[Round "7"]
[White "Hu, Yinuo"]
[Black "Mayer, Frederik Eliot"]
[Result "1-0"]
[ECO "B13"]
[WhiteElo "1495"]
[BlackElo "1128"]
[Annotator "NA"]
[PlyCount "123"]
[EventDate "2024.12.23"]
[EventType "team-tourn"]
[EventRounds "7"]
[EventCountry "GER"]
[SourceTitle "playchess.com"]
[Source "ChessBase"]
[SourceQuality "1"]
[TimeControl "3300+5"]

1. e4 {[%emt 0:00:03]} c6 {[%emt 0:00:05]} 2. d4 {[%emt 0:00:10]} d5 {[%emt 0:00:05]} 3. exd5 {[%emt 0:00:11]} cxd5 {[%emt 0:00:14]} 4. c3 {[%emt 0:00:12]} Nc6 {[%emt 0:00:11]} 5. Nf3 {[%emt 0:00:13]} Bg4 {[%emt 0:00:10]} 6. Be2 {[%emt 0:00:46]} Nf6 {[%emt 0:00:32]} 7. O-O {[%emt 0:00:35]} e6 {[%emt 0:00:09]} 8. Bf4 {[%emt 0:00:23]} Bd6 {[%emt 0:01:05]} 9. Be3 {[%emt 0:00:32]} O-O {[%emt 0:00:52]} 10. Nbd2 {[%emt 0:00:22]} Re8 {[%emt 0:01:07]} 11. Re1 {[%emt 0:00:31]} h6 {[%emt 0:00:47]} 12. h3 {[%emt 0:00:21]} Bh5 {[%emt 0:00:12]} 13. Nf1 {[%emt 0:00:28]} Bxf3 {[%emt 0:00:53]} 14. Bxf3 {[%emt 0:00:19]} Qc7 {[%emt 0:00:15]} 15. Bd2 {[%emt 0:01:44]} Rad8 {[%emt 0:00:55]} 16. a3 {[%emt 0:01:22]} Ne7 {[%emt 0:00:13]} 17. g3 {[%emt 0:02:12]} Ng6 {[%emt 0:00:26]} 18. Bg2 {[%emt 0:00:16]} e5 {[%emt 0:03:56]} 19. dxe5 {[%emt 0:00:56]} Bxe5 {[%emt 0:01:27]} 20. Nh2 {[%emt 0:02:56]} d4 {[%emt 0:01:56]} 21. Qc2 {[%emt 0:05:04]} Rc8 {[%emt 0:05:00]} 22. Rac1 {[%emt 0:01:43]} b6 {[%emt 0:03:44]} 23. Nf3 {[%emt 0:00:00]} dxc3 {[%emt 0:08:35]} 24. Bxc3 {[%emt 0:00:00]} Bxc3 {[%emt 0:01:00]} 25. Rxe8+ {[%emt 0:00:50]} Nxe8 {[%emt 0:01:56]} 26. Qxc3 {[%emt 0:00:29]} Qxc3 {[%emt 0:01:53]} 27. Rxc3 {[%emt 0:00:32]} Rxc3 {[%emt 0:00:13]} 28. bxc3 {[%emt 0:00:12]} Nd6 {[%emt 0:00:13]} 29. Nd4 {[%emt 0:00:12]} Nc4 {[%emt 0:00:16]} 30. a4 {[%emt 0:01:10]} Kf8 {[%emt 0:03:16]} 31. Kf1 {[%emt 0:00:26]} Ke7 {[%emt 0:00:11]} 32. Nc6+ {[%emt 0:00:22]} Kd6 {[%emt 0:00:16]} 33. Nxa7 {[%emt 0:00:12]} Kc5 {[%emt 0:00:38]} 34. Nb5 {[%emt 0:00:10]} Nge5 {[%emt 0:01:27]} 35. Ke2 {[%emt 0:00:22]} Nb2 {[%emt 0:00:23]} 36. f4 {[%emt 0:01:10]} Nec4 {[%emt 0:00:35]} 37. g4 {[%emt 0:01:54]} Nxa4 {[%emt 0:00:21]} 38. Nc7 {[%emt 0:00:42]} Nxc3+ {[%emt 0:01:14]} 39. Kd3 {[%emt 0:00:17]} Na4 {[%emt 0:01:10]} 40. Na6+ {[%emt 0:00:29]} Kb5 {[%emt 0:00:54]} 41. Nc7+ {[%emt 0:00:22]} Kb4 {[%emt 0:00:44]} 42. Na6+ {[%emt 0:00:47]} Kb3 {[%emt 0:01:10]} 43. Bd5 {[%emt 0:00:21]} Nab2+ {[%emt 0:01:22]} 44. Kd4 {[%emt 0:00:27]} f6 {[%emt 0:01:07]} 45. h4 {[%emt 0:00:24]} g6 {[%emt 0:00:47]} 46. g5 {[%emt 0:00:19]} fxg5 {[%emt 0:00:12]} 47. h5 {[%emt 0:00:13]} gxh5 {[%emt 0:00:07]} 48. f5 {[%emt 0:00:06]} g4 {[%emt 0:00:49]} 49. f6 {[%emt 0:00:09]} g3 {[%emt 0:00:06]} 50. f7 {[%emt 0:00:04]} g2 {[%emt 0:00:10]} 51. Bxg2 {[%emt 0:00:08]} Nd6 {[%emt 0:00:37]} 52. f8=Q {[%emt 0:00:08]} Nb5+ {[%emt 0:00:02]} 53. Ke3 {[%emt 0:00:50]} Nd1+ {[%emt 0:00:14]} 54. Kd2 {[%emt 0:00:09]} Nd4 {[%emt 0:01:07]} 55. Qb4+ {[%emt 0:00:21]} Ka2 {[%emt 0:00:03]} 56. Qxd4 {[%emt 0:00:19]} Nb2 {[%emt 0:00:08]} 57. Nb4+ {[%emt 0:00:21]} Ka1 {[%emt 0:00:01]} 58. Nc2+ {[%emt 0:00:14]} Ka2 {[%emt 0:00:11]} 59. Bd5+ {[%emt 0:00:21]} Kb1 {[%emt 0:00:05]} 60. Qg1+ {[%emt 0:00:27]} Nd1 {[%emt 0:00:06]} 61. Qxd1+ {[%emt 0:00:56]} Kb2 {[%emt 0:00:02]} 62. Qa1# {[%emt 0:00:11]} 1-0

[Event "DVM U10 2024"]
[Site "Duesseldorf"]
[Date "2024.12.29"]
[Round "7"]
[White "Graf, Tom"]
[Black "Zhu, Elias"]
[Result "1-0"]
[ECO "B06"]
[WhiteElo "1456"]
[BlackElo "934"]
[Annotator "NA"]
[PlyCount "61"]
[EventDate "2024.12.23"]
[EventType "team-tourn"]
[EventRounds "7"]
[EventCountry "GER"]
[SourceTitle "playchess.com"]
[Source "ChessBase"]
[SourceQuality "1"]
[TimeControl "3300+5"]

1. e4 {[%emt 0:00:02]} g6 {[%emt 0:00:11]} 2. d4 {[%emt 0:00:09]} Bg7 {[%emt 0:00:05]} 3. Nf3 {[%emt 0:00:08]} e6 {[%emt 0:00:09]} 4. Nc3 {[%emt 0:00:14]} Ne7 {[%emt 0:00:12]} 5. Bd3 {[%emt 0:02:06]} d6 {[%emt 0:00:08]} 6. Be3 {[%emt 0:01:08]} Nd7 {[%emt 0:00:17]} 7. O-O {[%emt 0:00:45]} h6 {[%emt 0:00:05]} 8. Qd2 {[%emt 0:01:13]} a6 {[%emt 0:00:24]} 9. Rfe1 {[%emt 0:01:05]} b6 {[%emt 0:00:11]} 10. Rad1 {[%emt 0:01:01]} Bb7 {[%emt 0:00:13]} 11. Be2 {[%emt 0:05:05]} c6 {[%emt 0:00:54]} 12. h3 {[%emt 0:05:40]} g5 {[%emt 0:00:36]} 13. Nh2 {[%emt 0:00:59]} Ng6 {[%emt 0:00:32]} 14. Bh5 {[%emt 0:02:02]} Qf6 {[%emt 0:01:55]} 15. Ng4 {[%emt 0:01:18]} Qe7 {[%emt 0:00:31]} 16. Bxg6 {[%emt 0:00:32]} fxg6 {[%emt 0:00:11]} 17. d5 {[%emt 0:02:28]} cxd5 {[%emt 0:00:57]} 18. exd5 {[%emt 0:00:28]} e5 {[%emt 0:00:17]} 19. Qd3 {[%emt 0:02:26]} Qf7 {[%emt 0:00:22]} 20. Ne4 {[%emt 0:04:21]} Qe7 {[%emt 0:00:42]} 21. Qa3 {[%emt 0:02:02]} Nc5 {[%emt 0:01:22]} 22. Bxc5 {[%emt 0:01:19]} bxc5 {[%emt 0:00:22]} 23. Qb3 {[%emt 0:01:42]} Rb8 {[%emt 0:00:59]} 24. Qa4+ {[%emt 0:00:52]} Qd7 {[%emt 0:00:47]} 25. Nef6+ {[%emt 0:00:12]} Bxf6 {[%emt 0:00:16]} 26. Nxf6+ {[%emt 0:00:11]} Kf7 {[%emt 0:00:18]} 27. Qxd7+ {[%emt 0:00:11]} Kxf6 {[%emt 0:00:10]} 28. Re3 {[%emt 0:00:22]} e4 {[%emt 0:00:38]} 29. Rxe4 {[%emt 0:00:09]} Rhd8 {[%emt 0:00:17]} 30. Qe7+ {[%emt 0:00:10]} Kf5 {[%emt 0:00:18]} 31. g4# {[%emt 0:00:22]} 1-0